bitfinex-derivatives/quotes_SOLF0:USTF0_20240926
["timestamp","ask_amount","ask_price","bid_price","bid_amount"]
[1727377349870,9.83,156.52,156.49,3.1944]
[1727377350368,9.83,156.52,156.46,9.83]
[1727377350573,9.83,156.52,156.5,3.1942]
[1727377351676,1.2672,156.54,156.5,9.83]
[1727377351881,4.41018108,156.54,156.5,9.83]
[1727377352269,4.41018108,156.54,156.53,3.1937]
[1727377352976,1.2672,156.54,156.53,3.1937]
[1727377354280,1.2672,156.54,156.5,9.83]
[1727377354883,1.2672,156.54,156.52,3.1938]
[1727377355980,1.2672,156.54,156.53,3.1937]
[1727377356582,9.83,156.57,156.55,3.1933]
[1727377356781,9.83,156.57,156.51,9.83]
[1727377357377,13.0785569,156.57,156.51,9.83]
[1727377357584,9.83,156.56,156.54,3.1934]
[1727377360287,9.83,156.55,156.53,3.1936]
[1727377361086,9.83,156.54,156.46,1.304]
[1727377361283,2.6408,156.56,156.46,11.134]
[1727377361489,9.83,156.52,156.46,1.304]
[1727377361789,9.83,156.52,156.5,3.1942]
[1727377362492,9.83,156.52,156.51,3.1942]
[1727377363784,11.1228,156.55,156.5,9.83]
[1727377363985,9.83,156.54,156.5,9.83]
[1727377364185,9.83,156.55,156.5,9.83]
[1727377364389,9.83,156.55,156.51,9.83]
[1727377365291,9.83,156.55,156.53,3.1937]
[1727377367991,2.6408,156.56,156.51,9.83]
[1727377367992,12.4708,156.56,156.51,9.83]
[1727377368586,12.4708,156.56,156.54,3.1934]
[1727377371092,11.1133,156.56,156.55,3.1933]
[1727377372696,11.1133,156.56,156.54,3.1935]
[1727377376490,1.2833,156.56,156.55,3.1933]
[1727377376794,11.1133,156.56,156.55,3.1933]
[1727377380198,1.3753,156.63,156.56,3.193]
[1727377380394,2.27155211,156.62,156.55,9.83]
[1727377380700,9.83,156.57,156.55,3.1932]
[1727377380899,9.83,156.56,156.49,7.731]
[1727377381195,9.83,156.54,156.5,9.83]
[1727377381400,9.83,156.54,156.53,3.1937]
[1727377381900,9.83,156.54,156.5,3.1942]
[1727377382096,9.83,156.51,156.5,3.1942]
[1727377382601,9.83,156.51,156.4,1.3419]
[1727377382800,9.83,156.46,156.41,9.83]
[1727377383101,9.83,156.49,156.44,9.83]
[1727377383302,1.3209,156.5,156.45,9.83]
[1727377383303,11.1509,156.5,156.45,9.83]
[1727377383500,9.83,156.52,156.47,9.83]
[1727377384500,9.83,156.52,156.49,3.1944]
[1727377385501,9.83,156.51,156.49,3.1944]
[1727377386494,9.83,156.51,156.4,2.6805]
[1727377386811,9.83,156.47,156.42,9.83]
[1727377386996,9.83,156.47,156.46,3.195]
[1727377390500,9.83,156.47,156.45,3.1953]
[1727377390698,9.83,156.46,156.4,2.6805]
[1727377390899,9.83,156.45,156.43,3.1956]
[1727377391207,9.83,156.44,156.43,3.1956]
[1727377393701,9.83,156.44,156.36,10.96271709]
[1727377393702,9.83,156.44,156.36,1.3683]
[1727377393907,9.83,156.41,156.36,11.1983]
[1727377394707,9.83,156.41,156.36,9.83]
[1727377395107,23.1209,156.47,156.39,3.1964]
[1727377395310,9.83,156.4,156.39,3.1964]
[1727377399508,2.6462,156.47,156.39,9.83]
[1727377399710,3.26347377,156.57,156.45,9.83]
[1727377399711,1.3757,156.56,156.45,9.83]
[1727377399914,9.83,156.52,156.46,9.83]
[1727377400112,7.13210219,156.56,156.49,9.83]
[1727377400308,9.83,156.54,156.49,9.83]
[1727377400617,9.83,156.54,156.45,3.24497538]
[1727377400808,12.3702,156.56,156.5,9.83]
[1727377401008,9.83,156.54,156.49,9.83]
[1727377401308,9.83,156.5,156.48,3.1948]
[1727377401704,9.83,156.5,156.44,9.83]
[1727377401909,9.83,156.52,156.49,3.1946]
[1727377402209,1.2623,156.53,156.5,9.83]
[1727377402410,9.83,156.54,156.5,9.83]
[1727377403006,9.83,156.54,156.51,3.194]
[1727377405311,9.83,156.53,156.51,3.194]
[1727377405714,9.83,156.53,156.5,3.1943]
[1727377407518,9.83,156.52,156.5,3.1943]
[1727377408715,9.83,156.54,156.48,9.83]
[1727377409420,9.83,156.54,156.51,3.194]
[1727377411515,9.83,156.54,156.48,9.83]
[1727377412223,9.83,156.54,156.51,3.194]
[1727377412920,9.83,156.52,156.5,3.1942]
[1727377414016,3.8697,156.56,156.5,3.1942]
[1727377414221,3.8697,156.56,156.49,9.83]
[1727377414526,9.83,156.54,156.49,9.83]
[1727377415623,9.83,156.53,156.48,9.83]
[1727377416316,9.83,156.53,156.52,3.194]
[1727377416623,9.83,156.54,156.52,3.194]
[1727377417424,3.8697,156.56,156.52,3.194]
[1727377417425,9.83,156.53,156.52,3.194]
[1727377418821,9.83,156.53,156.51,3.1941]
[1727377419425,9.83,156.52,156.4,2.6525]
[1727377419626,9.83,156.49,156.44,9.83]
[1727377419924,9.83,156.5,156.45,9.83]
[1727377420725,9.83,156.51,156.5,3.1943]
[1727377421021,9.83,156.53,156.48,9.83]
[1727377421222,3.8697,156.56,156.51,9.83]
[1727377421428,2.5966,156.56,156.53,9.83]
[1727377421629,2.5966,156.56,156.52,9.83]
[1727377421927,12.4266,156.56,156.53,3.1937]
[1727377422522,12.4266,156.56,156.54,3.1935]
[1727377426335,9.83,156.55,156.54,3.1935]
[1727377431843,2.5966,156.56,156.54,3.1935]
[1727377432041,12.4266,156.56,156.54,3.1935]
[1727377433034,11.1487,156.56,156.54,3.1935]
[1727377435449,9.83,156.55,156.52,3.1938]
[1727377435643,9.83,156.55,156.5,9.83]
[1727377436569,9.83,156.55,156.54,3.1935]
[1727377436953,11.1487,156.56,156.51,9.83]
[1727377437548,1.3187,156.56,156.53,9.83]
[1727377437758,9.83,156.59,156.54,9.83]
[1727377438856,9.83,156.59,156.56,3.193]
[1727377440254,9.83,156.59,156.57,3.1929]
[1727377442950,9.83,156.6,156.55,9.83]
[1727377443457,9.83,156.6,156.58,3.1926]
[1727377443858,9.83,156.59,156.53,9.83]
[1727377444047,9.83,156.57,156.56,3.193]
[1727377445256,9.83,156.57,156.48,2.6387]
[1727377445452,9.83,156.54,156.5,9.83]
[1727377445852,9.83,156.54,156.53,3.1937]
[1727377446059,9.83,156.55,156.51,9.83]
[1727377446453,9.83,156.57,156.56,3.1931]
[1727377446750,9.83,156.57,156.52,9.83]
[1727377446958,9.83,156.57,156.55,3.1933]
[1727377448957,9.83,156.56,156.55,3.1933]
[1727377449849,9.83,156.56,156.48,2.6387]
[1727377450053,9.83,156.55,156.5,9.83]
[1727377450457,9.83,156.55,156.54,3.1935]
[1727377458164,9.83,156.55,156.48,1.2534]
[1727377458469,9.83,156.51,156.48,1.2534]
[1727377458872,9.83,156.51,156.48,11.0834]
[1727377459175,9.83,156.51,156.5,3.1944]
[1727377460670,5.84032426,156.56,156.48,11.0834]
[1727377460873,1.3534,156.64,156.54,9.83]
[1727377461170,9.83,156.6,156.56,9.83]
[1727377461374,2.6033,156.63,156.56,9.83]
[1727377461681,9.83,156.61,156.56,9.83]
[1727377462879,9.83,156.62,156.57,9.83]
[1727377463472,19.18,156.71,156.6,3.1922]
[1727377463670,9.83,156.62,156.6,3.1922]
[1727377464966,9.83,156.61,156.59,3.1925]
[1727377465171,9.83,156.6,156.59,3.1925]
[1727377468870,3.15055358,156.63,156.59,3.1925]
[1727377469075,9.83,156.61,156.59,3.1925]
[1727377471673,3.16185073,156.63,156.6,3.1923]
[1727377471869,9.83,156.63,156.6,3.1923]
[1727377472072,13.08636462,156.63,156.6,3.1923]
[1727377472473,4.0776,156.68,156.61,3.192]
[1727377472671,9.83,156.63,156.61,3.192]
[1727377474078,9.83,156.62,156.61,3.192]
[1727377475780,9.83,156.62,156.55,1.2995]
[1727377476083,9.83,156.58,156.54,1.2789]
[1727377476479,23.2576,156.68,156.54,11.1089]
[1727377476787,9.83,156.58,156.54,11.1089]
[1727377476985,9.83,156.56,156.5,6.2725792]
[1727377477189,9.83,156.56,156.49,1.3704]
[1727377477384,9.83,156.54,156.5,9.83]
[1727377477581,9.83,156.54,156.49,1.3704]
[1727377477782,9.83,156.54,156.49,11.2004]
[1727377478278,9.83,156.53,156.49,11.2004]
[1727377478478,9.83,156.51,156.47,59.21634023]
[1727377478686,9.83,156.53,156.48,9.83]
[1727377478886,9.83,156.53,156.52,3.1939]
[1727377479187,1.345,156.58,156.49,9.83]
[1727377479188,9.83,156.54,156.49,9.83]
[1727377479885,9.83,156.53,156.48,9.83]
[1727377480482,9.83,156.52,156.47,69.04634023]
[1727377480889,9.83,156.52,156.51,3.194]
[1727377481284,9.83,156.54,156.49,9.83]
[1727377481489,9.83,156.53,156.52,3.1939]
[1727377484795,9.83,156.53,156.37,6.3938]
[1727377484998,9.83,156.45,156.4,9.83]
[1727377485196,3.957,156.52,156.44,3.1956]
[1727377485496,3.957,156.52,156.4,9.83]
[1727377485695,9.83,156.45,156.44,3.1956]
[1727377486294,9.83,156.47,156.43,9.83]
[1727377486489,9.83,156.48,156.43,9.83]
[1727377486893,9.83,156.47,156.43,9.83]
[1727377487897,9.83,156.47,156.46,3.1951]
[1727377488598,9.83,156.47,156.45,3.1953]
[1727377488793,9.83,156.46,156.45,3.1953]
[1727377494507,2.613,156.52,156.45,9.83]
[1727377494804,1.318,156.52,156.47,9.83]
[1727377495003,2.6532,156.57,156.48,9.83]
[1727377495193,9.83,156.54,156.49,9.83]
[1727377495598,9.83,156.54,156.53,3.1937]
[1727377498208,11.1269,156.56,156.51,9.83]
[1727377498911,11.1269,156.56,156.54,3.1934]
[1727377499308,1.3047,156.61,156.55,9.83]
[1727377499514,9.83,156.59,156.56,3.1931]
[1727377499814,9.83,156.58,156.56,3.1931]
[1727377500714,15.34,156.6,156.56,3.1931]
[1727377500910,15.34,156.6,156.51,15.34]
[1727377501210,2.6491,156.61,156.53,15.34]
[1727377501617,1.3444,156.61,156.53,15.34]
[1727377501814,15.34,156.6,156.51,15.34]
[1727377502713,15.34,156.6,156.57,3.1929]
[1727377504212,15.34,156.6,156.59,3.1925]
[1727377504411,1.3444,156.61,156.53,15.34]
[1727377504813,1.3444,156.61,156.57,3.1928]
[1727377505618,15.34,156.6,156.51,15.34]
[1727377507019,15.34,156.6,156.57,3.1928]
[1727377507920,1.3444,156.61,156.57,3.1928]
[1727377508320,1.3444,156.61,156.58,3.1927]
[1727377511222,1.3444,156.61,156.52,15.34]
[1727377511423,15.34,156.64,156.54,15.34]
[1727377511813,2.7502,156.65,156.56,15.34]
[1727377512019,1.368,156.65,156.56,15.34]
[1727377512724,15.34,156.64,156.55,15.34]
[1727377513122,15.34,156.64,156.61,3.192]
[1727377515321,15.34,156.64,156.62,3.1919]
[1727377517326,15.34,156.64,156.61,3.1921]
[1727377518521,15.34,156.62,156.59,3.1924]
[1727377518720,1.368,156.65,156.59,3.1924]
[1727377518721,15.34,156.6,156.59,3.1924]
[1727377520924,15.34,156.62,156.59,3.1924]
[1727377522426,9.81,156.6,156.59,3.1924]
[1727377533058,9.81,156.6,156.53,1.3644]
[1727377533251,9.81,156.57,156.53,11.1744]
[1727377533752,9.81,156.58,156.54,9.81]
[1727377534851,9.81,156.58,156.57,3.1929]
[1727377540056,1.2723,156.64,156.59,3.1924]
[1727377540351,9.81,156.61,156.59,3.1924]
[1727377544053,9.81,156.6,156.59,3.1924]
[1727377546056,9.81,156.6,156.53,1.3644]
[1727377546256,9.81,156.54,156.48,1.3468]
[1727377546452,9.81,156.51,156.48,1.3468]
[1727377546765,9.81,156.51,156.5,3.1944]
[1727377546961,9.81,156.54,156.49,9.81]
[1727377547271,9.81,156.53,156.49,9.81]
[1727377547753,2.7011,156.59,156.55,3.1931]
[1727377547754,9.81,156.56,156.55,3.1931]
[1727377550161,2.7011,156.59,156.56,3.1931]
[1727377550362,9.81,156.57,156.56,3.1931]
[1727377550562,9.81,156.57,156.51,9.81]
[1727377550763,9.81,156.55,156.51,9.81]
[1727377550980,9.81,156.55,156.54,3.1935]
[1727377552767,2.7011,156.59,156.56,3.1931]
[1727377552964,9.81,156.57,156.56,3.1931]
[1727377554168,9.81,156.58,156.57,3.1929]
[1727377554562,9.81,156.6,156.56,9.81]
[1727377555563,9.81,156.6,156.59,3.1925]
[1727377557068,9.81,156.6,156.54,11.1451]
[1727377557257,9.81,156.58,156.54,11.1451]
[1727377557566,9.81,156.59,156.55,9.81]
[1727377557867,9.81,156.59,156.56,9.81]
[1727377558269,9.81,156.6,156.59,3.1925]
[1727377559168,9.81,156.6,156.58,3.1926]
[1727377559363,9.81,156.59,156.58,3.1926]
[1727377559967,9.81,156.59,156.56,3.1931]
[1727377560166,9.81,156.57,156.49,7.6554]
[1727377560368,9.81,156.57,156.53,9.81]
[1727377561068,9.81,156.57,156.56,3.193]
[1727377561367,9.81,156.58,156.53,9.81]
[1727377561571,9.81,156.58,156.57,3.1929]
[1727377564968,9.81,156.58,156.52,9.81]
[1727377565277,9.81,156.56,156.52,9.81]
[1727377566879,9.81,156.56,156.55,3.1932]
[1727377568572,9.81,156.56,156.45,76.64]
[1727377568776,2.7478,156.55,156.46,6.30682617]
[1727377568980,9.81,156.49,156.47,6.30682617]
[1727377569283,9.81,156.49,156.48,3.1948]
[1727377572982,9.81,156.49,156.47,3.1949]
[1727377573181,3.15568264,156.52,156.47,3.1949]
[1727377573182,9.81,156.48,156.47,3.1949]
[1727377574472,3.16894924,156.52,156.47,3.1949]
[1727377574677,9.81,156.48,156.47,3.1949]
[1727377576081,2.7478,156.55,156.48,3.1947]
[1727377576379,9.81,156.49,156.48,3.1947]
[1727377578789,9.81,156.49,156.47,3.1949]
[1727377578988,3.14114583,156.52,156.47,3.1949]
[1727377578989,9.81,156.48,156.47,3.1949]
[1727377586296,9.81,156.49,156.48,3.1948]
[1727377593002,9.81,156.49,156.42,1.3511]
[1727377593201,9.81,156.45,156.42,1.3511]
[1727377593802,9.81,156.46,156.42,1.3511]
[1727377594903,9.81,156.46,156.45,3.1954]
[1727377596301,1.322,156.51,156.48,3.1947]
[1727377596700,9.81,156.49,156.48,3.1947]
[1727377598496,9.81,156.49,156.47,3.1949]
[1727377598702,9.81,156.48,156.47,3.1949]
[1727377604401,9.81,156.48,156.36,7.7726]
[1727377604606,9.81,156.41,156.36,7.7726]
[1727377604800,9.81,156.41,156.36,17.5826]
[1727377605109,9.81,156.41,156.4,3.1964]
[1727377605312,2.6731,156.47,156.39,69.04899734]
[1727377605611,9.81,156.43,156.39,69.04899734]
[1727377605910,9.81,156.43,156.42,3.196]
[1727377615216,9.81,156.44,156.43,3.1958]
[1727377617131,9.81,156.44,156.35,60.58982682]
[1727377617422,2.6731,156.47,156.35,60.58982682]
[1727377617628,2.6731,156.47,156.41,3.1961]
[1727377617819,9.81,156.42,156.41,3.1961]
[1727377618923,9.81,156.42,156.4,3.1963]
[1727377619122,9.81,156.41,156.4,3.1963]
[1727377620629,9.81,156.42,156.38,9.81]
[1727377620829,9.81,156.45,156.4,9.81]
[1727377621029,9.81,156.46,156.4,9.81]
[1727377621531,9.81,156.46,156.45,3.1953]
[1727377622930,11.1763,156.47,156.46,3.1952]
[1727377623124,9.81,156.47,156.46,3.1952]
[1727377624229,1.322,156.51,156.48,3.1947]
[1727377624425,9.81,156.49,156.48,3.1947]
[1727377625628,9.81,156.49,156.47,3.1949]
[1727377625830,9.81,156.48,156.47,3.1949]
[1727377627336,9.81,156.48,156.37,7.56643179]
[1727377627536,9.81,156.46,156.41,9.81]
[1727377628328,9.81,156.47,156.43,9.81]
[1727377628928,9.81,156.47,156.46,3.1952]
[1727377634236,9.81,156.49,156.48,3.1947]
[1727377634626,9.81,156.52,156.5,3.1942]
[1727377634829,9.81,156.52,156.47,9.81]
[1727377635236,9.81,156.52,156.5,3.1942]
[1727377635429,1.3002,156.54,156.5,9.81]
[1727377635634,9.81,156.56,156.51,9.81]
[1727377635935,9.81,156.56,156.55,3.1933]
[1727377636842,9.81,156.56,156.5,9.81]
[1727377637041,9.81,156.56,156.45,6.3904]
[1727377637042,9.81,156.53,156.48,9.81]
[1727377637332,9.81,156.51,156.5,3.1944]
[1727377640235,9.81,156.52,156.47,9.81]
[1727377640834,9.81,156.52,156.51,3.1942]
[1727377643539,9.81,156.56,156.51,9.81]
[1727377643740,1.332,156.58,156.54,9.81]
[1727377643943,11.142,156.58,156.54,9.81]
[1727377644240,11.142,156.58,156.56,3.193]
[1727377644648,9.81,156.58,156.54,9.81]
[1727377644942,1.3002,156.59,156.55,9.81]
[1727377645842,9.81,156.61,156.56,9.81]
[1727377646238,9.81,156.61,156.59,3.1924]
[1727377646441,3.19064691,156.64,156.58,9.81]
[1727377646637,9.81,156.63,156.59,9.81]
[1727377647143,14.32214224,156.65,156.59,9.81]
[1727377647346,11.1727,156.65,156.61,3.1919]
[1727377647537,9.81,156.63,156.61,3.1919]
[1727377648139,9.81,156.62,156.6,3.1922]
[1727377648340,9.81,156.61,156.56,9.81]
[1727377648738,9.81,156.62,156.57,9.81]
[1727377649343,9.81,156.62,156.6,3.1922]
[1727377651346,9.81,156.61,156.54,9.81]
[1727377651551,9.81,156.59,156.51,3.26794559]
[1727377651748,9.81,156.56,156.52,9.81]
[1727377651956,9.81,156.58,156.53,9.81]
[1727377652847,9.81,156.58,156.57,3.1929]
[1727377653650,9.81,156.58,156.56,3.1931]
[1727377654457,9.81,156.57,156.56,3.1931]
[1727377655252,9.81,156.58,156.57,3.1929]
[1727377656857,9.81,156.58,156.56,3.193]
[1727377657056,9.81,156.57,156.56,3.193]
[1727377657459,9.81,156.57,156.55,3.1933]
[1727377657654,9.81,156.56,156.55,3.1933]
[1727377658755,9.81,156.57,156.56,3.193]
[1727377658952,1.3627,156.65,156.53,9.81]
[1727377659153,9.81,156.58,156.53,9.81]
[1727377659351,9.81,156.57,156.56,3.1929]
[1727377665561,13.003,156.57,156.54,3.1934]
[1727377665756,9.81,156.54,156.5,59.20417901]
[1727377666065,9.81,156.55,156.54,3.1933]
[1727377669861,9.81,156.55,156.49,1.3788]
[1727377670160,9.81,156.52,156.47,9.81]
[1727377670665,9.81,156.52,156.51,3.194]
[1727377675559,9.81,156.52,156.44,1.2735]
[1727377675759,9.81,156.48,156.44,1.2735]
[1727377675962,9.81,156.49,156.44,11.0835]
[1727377676764,1.3487,156.56,156.47,9.81]
[1727377677061,9.81,156.52,156.47,9.81]
[1727377677966,9.81,156.52,156.51,3.1942]
[1727377686175,1.275,156.55,156.51,9.81]
[1727377686580,9.81,156.56,156.54,3.1934]
[1727377689678,9.81,156.56,156.55,3.1933]
[1727377689877,9.81,156.57,156.53,9.81]
[1727377690882,9.81,156.57,156.51,11.1694]
[1727377691082,9.81,156.55,156.51,11.1694]
[1727377691588,9.81,156.55,156.51,1.3594]
[1727377691879,9.81,156.55,156.53,3.1936]
[1727377692190,9.81,156.54,156.46,1.2651]
[1727377692382,9.81,156.53,156.52,3.194]
[1727377693682,9.81,156.53,156.51,3.1941]
[1727377693882,9.81,156.52,156.46,12.4345]
[1727377694078,9.81,156.5,156.46,1.3594]
[1727377695893,9.81,156.5,156.49,3.1946]
[1727377698289,9.81,156.53,156.47,9.81]
[1727377698686,9.81,156.53,156.52,3.194]
[1727377699187,9.81,156.54,156.53,3.1937]
[1727377701782,9.81,156.54,156.52,3.1939]
[1727377701987,9.81,156.52,156.47,9.81]
[1727377702386,9.81,156.52,156.51,3.194]
[1727377703389,9.81,156.52,156.4,6.3928]
[1727377703598,9.81,156.48,156.42,14.45666496]
[1727377703794,1.3834,156.52,156.49,3.1945]
[1727377703795,9.81,156.51,156.49,3.1945]
[1727377703991,11.1934,156.52,156.47,9.81]
[1727377704893,9.81,156.51,156.47,9.81]
[1727377705397,9.81,156.51,156.5,3.1942]
[1727377707494,9.81,156.51,156.47,9.81]
[1727377707898,9.81,156.5,156.46,9.81]
[1727377708497,9.81,156.52,156.5,3.1943]
[1727377710400,9.81,156.51,156.5,3.1943]
[1727377711391,13.0042,156.51,156.47,3.1949]
[1727377711597,13.0042,156.51,156.45,9.81]
[1727377712703,9.81,156.49,156.44,9.81]
[1727377713203,9.81,156.48,156.44,9.81]
[1727377713695,9.81,156.47,156.46,3.195]
[1727377713903,9.81,156.47,156.4,1.2963]
[1727377714103,9.81,156.47,156.41,9.81]
[1727377714802,9.81,156.47,156.46,3.1952]
[1727377720306,9.81,156.47,156.45,3.1953]
[1727377721199,9.81,156.47,156.46,3.1952]
[1727377735914,3.1948,156.48,156.46,3.1952]
[1727377736119,9.81,156.47,156.46,3.1952]
[1727377740015,9.81,156.48,156.44,9.81]
[1727377740216,2.7205,156.55,156.47,9.81]
[1727377740420,1.3704,156.55,156.54,3.1935]
[1727377740825,9.81,156.57,156.54,3.1935]
[1727377741035,9.81,156.57,156.55,3.1932]
[1727377742117,13.00692006,156.56,156.47,2.5982]
[1727377742314,9.81,156.52,156.47,15.66517412]
[1727377743131,9.81,156.52,156.51,3.1942]
[1727377743718,9.81,156.52,156.47,1.2842]
[1727377744028,3.14708798,156.56,156.44,9.81]
[1727377744029,9.81,156.5,156.44,9.81]
[1727377744426,9.81,156.5,156.49,3.1946]
[1727377752632,9.81,156.52,156.47,9.81]
[1727377752826,11.1754,156.54,156.49,9.81]
[1727377753227,1.3654,156.54,156.53,3.1937]
[1727377753632,9.81,156.55,156.54,3.1935]
[1727377755032,9.81,156.56,156.55,3.1932]
[1727377755235,9.81,156.58,156.53,9.81]
[1727377755742,11.1579,156.61,156.56,9.81]
[1727377755929,1.3479,156.61,156.56,9.81]
[1727377756132,1.3479,156.61,156.57,9.81]
[1727377756534,11.1579,156.61,156.53,3.21681676]
[1727377756739,9.81,156.6,156.55,9.81]
[1727377757239,9.81,156.6,156.58,3.1926]
[1727377757637,9.81,156.6,156.5,1.2955]
[1727377757638,9.81,156.59,156.53,9.81]
[1727377757838,9.81,156.57,156.53,9.81]
[1727377758541,9.81,156.56,156.52,9.81]
[1727377759236,9.81,156.54,156.5,1.2955]
[1727377759639,9.81,156.52,156.51,3.1941]
[1727377760246,9.81,156.52,156.46,69.03082573]
[1727377760447,9.81,156.5,156.46,69.03082573]
[1727377761836,9.81,156.5,156.49,3.1944]
[1727377762445,18.5239,156.53,156.5,3.1943]
[1727377766945,18.5239,156.53,156.51,3.1941]
[1727377767245,18.5239,156.53,156.46,59.22082573]
[1727377767953,18.5239,156.53,156.5,3.1942]
[1727377768346,3.194,156.52,156.5,3.1942]
[1727377774853,18.5238,156.53,156.51,3.1941]
[1727377775053,15.33,156.53,156.51,3.1941]
[1727377775354,18.5239,156.53,156.51,3.1941]
[1727377775556,15.33,156.53,156.5,3.1943]
[1727377775955,18.5242,156.51,156.48,3.1947]
[1727377776146,15.33,156.51,156.45,1.2886]
[1727377777055,2.6112,156.54,156.46,15.33]
[1727377777752,1.3379,156.54,156.48,15.33]
[1727377778149,18.5228,156.58,156.55,3.1932]
[1727377779449,5.8417,156.59,156.56,3.1931]
[1727377780050,2.6491,156.59,156.56,3.1931]
[1727377780252,2.6491,156.59,156.51,4.5036629]
[1727377780757,2.6491,156.59,156.56,3.1931]
[1727377781861,5.8417,156.59,156.56,3.1931]
[1727377782453,9.82,156.57,156.56,3.1931]
[1727377783654,15.6617,156.59,156.56,3.1931]
[1727377794273,3.1927,156.58,156.56,3.1931]
[1727377795172,15.6617,156.59,156.56,3.1931]
[1727377795373,1.3129,156.59,156.55,9.82]
[1727377796176,1.3129,156.59,156.57,3.1928]
[1727377797878,4.5054,156.59,156.57,3.1928]
[1727377800176,1.3129,156.59,156.57,3.1928]
[1727377800680,1.3129,156.59,156.58,3.1927]
[1727377801072,13.0122,156.61,156.56,9.82]
[1727377801277,11.1509,156.64,156.59,9.82]
[1727377801878,1.3309,156.64,156.6,9.82]
[1727377802484,1.3309,156.64,156.62,3.1918]
[1727377803687,11.1509,156.64,156.62,3.1918]
[1727377806985,14.3425,156.64,156.61,3.192]
[1727377807280,9.82,156.63,156.58,9.82]
[1727377807684,13.0117,156.63,156.6,3.1922]
[1727377808081,13.0117,156.63,156.58,9.82]
[1727377808281,9.82,156.63,156.61,3.1921]
[1727377808481,1.335,156.71,156.62,9.82]
[1727377808689,12.11896303,156.7,156.65,9.82]
[1727377808886,7.31433471,156.69,156.66,3.1909]
[1727377809085,3.15067168,156.69,156.65,9.82]
[1727377809486,3.1907,156.68,156.65,13.0111]
[1727377809685,3.1907,156.68,156.64,9.82]
[1727377809886,13.0109,156.67,156.64,3.1914]
[1727377814795,3.1909,156.67,156.64,13.0114]
[1727377814995,13.0107,156.68,156.65,3.1913]
[1727377816893,3.1909,156.67,156.65,3.1913]
[1727377818492,3.1915,156.65,156.61,3.1919]
[1727377818692,3.2048882,156.69,156.58,1.3174]
[1727377818693,9.82,156.64,156.58,1.3174]
[1727377818892,9.82,156.61,156.57,11.1959]
[1727377819195,9.82,156.61,156.59,3.1924]
[1727377819692,9.82,156.61,156.6,3.1923]
[1727377820292,9.82,156.63,156.61,3.1921]